bitfinex/quotes_ETHUSD_20250131
["timestamp","ask_amount","ask_price","bid_price","bid_amount"]
[1738291320561,0.91211403,3250.8,3250.5,0.28776713]
[1738291320762,0.91211391,3250.8,3250.5,0.28776713]
[1738291320963,3.07629,3250.7,3250.5,0.28776713]
[1738291321218,0.11844589,3250.6,3250.5,0.28776713]
[1738291321513,0.15690311,3250.6,3250.5,0.28776713]
[1738291321661,0.15690311,3250.6,3250.0,3.69418141]
[1738291322105,0.15690336,3250.6,3250.0,3.69418141]
[1738291322405,0.11844589,3250.6,3250.0,3.69418141]
[1738291322763,0.15690333,3250.6,3250.0,3.69418141]
[1738291323063,0.11844589,3250.6,3250.0,3.69418141]
[1738291325865,0.11844589,3250.6,3250.2,3.07673]
[1738291326400,0.8223,3251.1,3250.4,3.07647]
[1738291326711,0.11807858,3251.0,3250.5,3.07638]
[1738291326896,0.11807858,3251.0,3250.6,3.07634]
[1738291327092,0.11807858,3251.0,3250.4,3.87797]
[1738291327683,3.23251091,3251.0,3250.2,3.0767]
[1738291327879,3.07616,3250.8,3250.2,3.0767]
[1738291328084,3.11461461,3250.8,3250.2,3.0767]
[1738291328395,0.11799138,3250.7,3250.2,3.0767]
[1738291328573,3.07598,3251.0,3250.4,3.07651]
[1738291328767,0.11799063,3250.9,3250.4,3.07651]
[1738291332082,0.11799063,3250.9,3250.8,3.91686]
[1738291332284,0.11799063,3250.9,3250.8,3.92436]
[1738291332523,0.7529,3251.7,3251.2,3.07574]
[1738291332917,0.11805153,3251.6,3251.2,3.07574]
[1738291333118,0.15649637,3251.6,3251.0,3.07595]
[1738291333286,0.55497501,3251.6,3250.6,3.86213]
[1738291333486,0.55497501,3251.6,3250.8,3.07616]
[1738291333487,3.07561,3251.4,3250.8,3.07616]
[1738291333920,0.11825238,3251.3,3250.8,3.07616]
[1738291334638,0.03844958,3251.2,3250.6,3.86213]
[1738291334934,0.7817,3251.1,3250.4,3.07652]
[1738291335087,3.07607,3250.9,3250.2,3.68110877]
[1738291335295,3.07627,3250.7,3250.1,3.07675]
[1738291335597,0.7817,3250.5,3250.1,3.07675]
[1738291335787,0.11840288,3250.4,3250.0,0.61086876]
[1738291336203,0.11840288,3250.4,3250.0,3.68775876]
[1738291336489,0.11840288,3250.4,3250.3,3.07663]
[1738291336934,3.86948,3250.9,3250.3,3.07663]
[1738291337098,0.11824226,3250.4,3250.3,4.220293]
[1738291337296,0.8148,3251.6,3250.9,3.07599]
[1738291337512,0.8148,3251.6,3251.1,3.07581]
[1738291337787,0.8148,3251.6,3250.9,0.7969]
[1738291337788,0.10963315,3251.5,3251.4,3.07556]
[1738291338102,0.8148,3251.9,3251.5,3.07549]
[1738291338629,0.8148,3252.3,3251.8,3.07514]
[1738291338832,0.8148,3252.3,3251.9,3.07511]
[1738291338983,0.2504,3252.4,3251.9,3.07511]
[1738291339431,0.882893,3252.4,3251.9,3.07511]
[1738291340705,0.2504,3252.4,3252.1,3.07487]
[1738291341027,0.2504,3252.4,3252.3,3.07474]
[1738291342892,0.2504,3252.4,3252.3,3.08974]
[1738291343394,0.35643736,3252.4,3252.3,3.08974]
[1738291344035,0.2504,3252.4,3252.3,3.08974]
[1738291345435,0.2504,3252.4,3252.3,6.63974]
[1738291348200,0.2504,3252.4,3252.3,6.84274]
[1738291349105,0.2504,3252.4,3252.3,6.08974]
[1738291349308,0.2504,3252.4,3252.3,6.29274]
[1738291350344,0.2504,3252.4,3252.3,6.84274]
[1738291358782,0.2504,3252.4,3252.3,7.60324]
[1738291361340,0.2504,3252.4,3252.3,42.60324]
[1738291361865,0.2504,3252.4,3252.3,6.85024]
[1738291362240,0.2504,3252.4,3252.3,6.84174]
[1738291362853,0.2504,3252.4,3252.3,3.29174]
[1738291363132,0.2504,3252.4,3252.3,3.84174]
[1738291363576,0.2504,3252.4,3252.3,0.767]
[1738291363766,0.2504,3252.4,3252.3,3.84174]
[1738291367481,0.2504,3252.4,3252.3,3.63974]
[1738291367655,0.2504,3252.4,3252.1,3.07492]
[1738291367859,0.10658428,3252.3,3252.1,3.07492]
[1738291368365,0.10516109,3252.3,3252.2,0.55]
[1738291368686,0.2504,3252.4,3252.2,0.55]
[1738291368986,0.2504,3252.4,3252.2,3.62482]
[1738291369282,0.2504,3252.4,3252.1,0.55]
[1738291369453,0.2504,3252.4,3252.1,3.62492]
[1738291369782,0.10653314,3252.3,3251.9,3.07508]
[1738291369986,0.10653314,3252.3,3252.0,0.55]
[1738291370485,0.2504,3252.4,3252.0,0.55]
[1738291370787,0.2504,3252.4,3252.1,3.07492]
[1738291371172,0.10653345,3252.3,3252.1,3.07492]
[1738291371680,0.10653345,3252.3,3252.0,0.55]
[1738291371885,0.775,3252.2,3252.0,0.55]
[1738291372246,0.10653218,3252.1,3252.0,0.55]
[1738291372469,0.10653218,3252.1,3252.0,3.62503]
[1738291373074,0.775,3252.2,3252.0,3.62503]
[1738291373782,0.775,3252.2,3252.0,0.55]
[1738291374149,0.10653218,3252.1,3252.0,0.55]
[1738291375289,0.7695,3252.0,3251.5,3.07544]
[1738291375496,0.7695,3251.7,3251.2,3.07575]
[1738291375691,0.7695,3251.7,3251.4,0.55]
[1738291375986,0.7695,3251.7,3251.3,5.51066]
[1738291376164,0.10599708,3251.6,3251.3,5.51066]
[1738291376365,0.7695,3251.7,3251.4,0.55]
[1738291376577,0.7695,3251.7,3251.5,3.0755]
[1738291376765,0.1058778,3251.6,3251.5,3.0755]
[1738291377463,0.1058778,3251.6,3251.4,0.55]
[1738291377894,0.7695,3251.7,3251.4,0.55]
[1738291378075,0.10575774,3251.5,3251.4,0.55]
[1738291378282,0.7695,3251.7,3251.4,0.55]
[1738291378467,0.10575774,3251.5,3251.4,0.55]
[1738291378665,0.7695,3251.7,3251.4,0.55]
[1738291378866,0.10575805,3251.5,3251.4,0.55]
[1738291379182,0.7695,3251.7,3251.4,0.55]
[1738291379677,0.10575853,3251.6,3251.4,0.55]
[1738291380647,3.18117853,3251.6,3251.3,2.435]
[1738291380854,1.16121219,3251.5,3251.1,3.07586]
[1738291381056,0.7623,3251.5,3251.2,0.55]
[1738291381903,0.14415714,3251.4,3250.9,3.07605]
[1738291382101,0.7548,3251.3,3250.9,3.07605]
[1738291382453,0.14415942,3251.2,3250.9,3.68406771]
[1738291382700,0.105711,3251.2,3250.9,0.60801771]
[1738291383060,0.79324919,3251.3,3250.9,0.60801771]
[1738291383261,0.10561977,3251.2,3250.9,0.60801771]
[1738291383580,1.18013311,3251.3,3250.9,0.60801771]
[1738291383754,0.10555963,3251.1,3250.9,0.60801771]
[1738291383956,1.14168392,3251.3,3250.9,0.55]
[1738291384157,0.10555915,3251.0,3250.9,3.62604]
[1738291384402,0.7548,3251.3,3251.0,3.07596]
[1738291385361,0.7548,3251.3,3250.9,0.55]
[1738291386162,0.7772,3252.0,3251.3,0.5575]
[1738291386403,0.775,3252.3,3251.7,0.55]
[1738291386707,0.775,3252.3,3251.8,3.07515]
[1738291386874,3.2504,3252.4,3251.2,3.0757]
[1738291386875,3.07511,3252.0,3251.2,3.0757]
[1738291387074,0.7887,3251.8,3251.2,3.0757]
[1738291387265,0.7887,3251.8,3251.3,3.07567]
[1738291387606,0.7887,3251.8,3251.4,3.07557]
[1738291388304,0.7887,3251.8,3251.2,3.0757]
[1738291388671,0.82714333,3251.8,3251.2,3.0757]
[1738291388861,0.7887,3251.8,3251.3,3.07567]
[1738291392987,0.09460574,3251.7,3251.4,3.07557]
[1738291393183,0.09460574,3251.7,3251.6,3.0754]
[1738291393389,0.8054,3252.3,3251.8,3.07517]
[1738291393589,0.8054,3252.3,3251.9,3.0751]
[1738291393805,0.0946643,3252.2,3251.9,3.0751]
[1738291394145,0.8054,3252.3,3251.8,3.07517]
[1738291394298,0.09466382,3252.1,3252.0,3.07502]
[1738291394489,0.0946643,3252.2,3252.1,3.07493]
[1738291394689,0.8054,3252.3,3252.1,3.07493]
[1738291394890,0.0946643,3252.2,3252.1,3.07493]
[1738291395329,0.8054,3252.3,3252.1,3.07493]
[1738291395631,0.0946643,3252.2,3252.1,3.07493]
[1738291395797,0.0946643,3252.2,3251.9,3.07503]
[1738291396002,0.8054,3252.3,3251.8,3.383457]
[1738291396215,0.0946585,3252.1,3252.0,3.075]
[1738291396391,0.09465897,3252.2,3252.0,3.075]
[1738291396588,0.0946585,3252.1,3252.0,3.075]
[1738291397094,0.2504,3252.4,3252.2,3.07484]
[1738291398230,0.2504,3252.4,3252.3,3.07474]
[1738291400551,0.2504,3252.4,3252.3,3.63974]
[1738291401046,0.2504,3252.4,3252.3,3.84174]
[1738291402843,0.2504,3252.4,3252.3,4.62094]
[1738291403496,0.2504,3252.4,3252.3,7.62094]
[1738291403617,0.2504,3252.4,3252.3,9.62094]
[1738291404831,0.2504,3252.4,3252.3,7.62094]
[1738291405857,0.2504,3252.4,3252.3,9.62094]
[1738291406746,1e-05,3252.4,3252.3,18.55094]
[1738291407826,1e-05,3252.4,3252.3,18.00094]
[1738291408422,1e-05,3252.4,3252.3,18.55094]
[1738291409452,1e-05,3252.4,3252.3,18.34894]
[1738291409658,0.8263,3253.0,3252.3,9.9112]
[1738291409811,0.8263,3253.0,3252.8,3.07419]
[1738291410012,0.8263,3253.0,3252.9,0.55]
[1738291410337,0.8263,3253.0,3252.9,3.62417]
[1738291419250,0.8263,3253.0,3252.5,6.16401]
[1738291419451,0.8263,3253.0,3252.6,3.07443]
[1738291420425,1.2201616,3253.0,3252.5,3.07448]
[1738291420851,0.8263,3253.0,3252.5,3.07448]
[1738291421048,0.86472858,3253.0,3252.5,3.07448]
[1738291421250,0.86472897,3253.0,3252.5,3.07448]
[1738291421567,0.8263,3253.0,3252.6,3.07445]
[1738291421870,0.8263,3253.0,3252.6,3.07438]
[1738291422757,0.09241539,3252.9,3252.6,3.07438]
[1738291426481,0.09241539,3252.9,3252.5,3.07454]
[1738291428175,0.09241539,3252.9,3252.6,3.07445]
[1738291428358,0.09241539,3252.9,3252.8,3.63927]
[1738291428750,0.8132,3253.3,3253.2,3.07389]
[1738291429151,0.90213254,3253.3,3253.2,3.07389]
[1738291429648,0.08893254,3253.3,3253.2,3.07389]
[1738291430085,0.7627,3253.5,3253.3,3.0738]
[1738291430989,0.7627,3253.5,3253.1,3.07398]
[1738291431194,0.7627,3253.5,3253.1,6.1479]
[1738291431484,0.7627,3253.5,3253.2,3.07386]
[1738291432288,0.7627,3253.5,3252.9,0.61064054]
[1738291432289,0.03842031,3253.4,3252.9,3.07415]
[1738291432448,0.8024,3253.3,3252.9,3.07415]
[1738291433629,0.03842469,3253.2,3252.7,3.07436]
[1738291433832,0.7734,3253.4,3252.5,3.07455]
[1738291434125,0.8103,3253.1,3252.6,3.07441]
[1738291434331,0.8103,3253.1,3252.7,3.07433]
[1738291435191,0.8103,3253.1,3252.5,3.07455]
[1738291436338,0.8103,3253.1,3252.6,3.07445]
[1738291437999,0.08904009,3253.0,3252.6,3.07445]
[1738291438340,0.08904009,3253.0,3252.5,3.07455]
[1738291438549,0.8288,3252.8,3252.3,3.07472]
[1738291438725,0.8288,3252.6,3252.1,3.07491]
[1738291439242,0.08897793,3252.5,3252.1,3.07491]
[1738291441235,0.08897793,3252.5,3252.2,3.07479]
[1738291442752,0.08897793,3252.5,3252.1,3.07491]
[1738291442938,0.49203703,3252.5,3251.9,3.68186246]
[1738291443253,0.7663,3252.3,3251.8,3.0752]
[1738291443738,0.08887804,3252.2,3251.8,3.0752]
[1738291444110,0.7663,3252.3,3251.8,3.0752]
[1738291444312,0.08887756,3252.1,3251.8,3.0752]
[1738291444555,0.08887708,3252.0,3251.8,3.0752]
[1738291444728,0.7663,3252.3,3251.8,3.0752]
[1738291444931,0.08887804,3252.2,3251.8,3.0752]
[1738291445255,0.7663,3252.3,3251.8,3.0752]
[1738291445462,0.08887756,3252.1,3251.8,3.0752]
[1738291445658,0.08887804,3252.2,3251.6,3.08289]
[1738291445834,0.08887708,3252.0,3251.6,3.08289]
[1738291446034,0.7663,3252.3,3251.6,3.08289]
[1738291446561,0.08887937,3252.2,3251.6,3.08289]
[1738291447262,0.08887937,3252.2,3251.8,3.07517]
[1738291447415,0.48570805,3252.2,3251.8,3.07517]
[1738291447757,0.08887937,3252.2,3251.9,3.07512]
[1738291448257,0.7663,3252.3,3251.9,3.07512]
[1738291448458,0.08865032,3252.1,3251.9,3.07512]
[1738291448686,0.7663,3252.3,3251.9,3.07512]
[1738291448883,0.08864984,3252.0,3251.9,3.07512]
[1738291449392,0.7663,3252.3,3251.9,3.07512]
[1738291449592,0.08864984,3252.0,3251.9,3.07512]
[1738291449900,0.7663,3252.3,3251.9,3.07512]
[1738291450194,0.805,3252.5,3252.3,3.07466]
[1738291450348,0.805,3252.5,3252.4,3.07465]
[1738291450754,0.805,3252.9,3252.4,3.07465]
[1738291451298,0.805,3252.9,3252.5,3.07447]
[1738291451474,0.805,3252.9,3252.5,0.55]
[1738291451676,0.805,3252.9,3252.6,3.07438]
[1738291452190,0.805,3252.9,3252.4,3.07465]
[1738291452191,0.8029,3253.4,3252.4,0.565]
[1738291452406,0.8029,3253.4,3252.9,3.07414]
[1738291452765,0.08867243,3253.3,3252.9,3.07414]
[1738291453409,0.08867243,3253.3,3253.0,3.07404]
[1738291453717,0.08867243,3253.3,3252.9,6.14824]
[1738291453873,0.08867243,3253.3,3253.0,3.07407]
[1738291454473,0.08867243,3253.3,3253.1,3.07392]
[1738291454886,0.08867243,3253.3,3252.9,3.0741]
[1738291456069,0.08867243,3253.3,3253.2,3.07389]
[1738291456268,0.7634,3253.6,3253.3,3.07377]
[1738291456508,0.7634,3253.6,3253.4,3.0737]
[1738291456714,0.7634,3253.6,3253.5,3.07361]
[1738291457271,0.7862,3254.0,3253.5,3.07361]
[1738291460692,3.11165655,3253.9,3253.1,3.07395]
[1738291461019,0.7636,3253.8,3253.1,3.07395]
[1738291461821,0.7636,3253.8,3253.3,3.0738]
[1738291462482,0.7636,3253.8,3253.1,3.07395]
[1738291462483,3.83694,3253.8,3253.1,3.07395]
[1738291462677,3.11184997,3253.7,3253.1,3.07395]
[1738291462909,3.07343,3253.7,3253.1,3.07395]
[1738291463282,0.7636,3253.8,3253.2,3.07387]
[1738291463483,1.147284,3253.8,3253.2,3.07387]
[1738291465413,0.03841996,3253.7,3253.2,3.07387]
[1738291465619,4.220644,3253.8,3253.2,3.07387]
[1738291465824,0.03841996,3253.7,3253.2,3.07387]
[1738291466697,4.220644,3253.8,3253.2,3.07387]
[1738291467601,0.03841996,3253.7,3253.2,3.07387]
[1738291467939,0.12735828,3253.7,3253.2,3.07387]
[1738291468144,3.07367,3253.5,3252.8,3.07419]
[1738291468342,0.8249,3253.4,3252.6,0.0075]
[1738291468504,3.07389,3253.3,3252.5,0.8099]
[1738291468698,3.51108999,3253.3,3252.3,4.49112633]
[1738291469030,0.8249,3253.0,3252.4,3.08208]
[1738291469231,0.8249,3253.0,3252.5,3.07449]
[1738291469443,0.08894503,3252.9,3252.5,3.07449]
[1738291470305,0.08894503,3252.9,3252.6,0.28677872]
[1738291470505,3.07429,3252.8,3252.6,0.28677872]
[1738291470829,0.08875426,3252.7,3252.6,0.28677872]
[1738291471206,3.07429,3252.8,3252.6,0.28677872]
[1738291471446,0.08875426,3252.7,3252.6,0.28677872]
[1738291471617,3.07429,3252.8,3252.3,0.28677872]
[1738291471817,0.08875426,3252.7,3252.3,0.28677872]
[1738291472017,3.07429,3252.8,3252.3,0.28677872]
[1738291472219,0.08875378,3252.6,3252.3,3.36151872]
[1738291472418,0.08875378,3252.6,3252.3,0.28677872]
[1738291472645,3.89904,3253.0,3252.4,3.07465]
[1738291472806,0.0887533,3252.5,3252.4,3.07465]
[1738291473140,3.89904,3253.0,3252.5,0.28677872]
[1738291474239,3.89904,3253.0,3252.6,0.28677872]
[1738291475856,3.89904,3253.0,3252.7,0.28677872]
[1738291476051,0.8249,3253.0,3252.7,0.28677872]
[1738291476458,0.8249,3253.0,3252.7,3.36111872]
[1738291477253,0.8249,3253.0,3252.8,0.28677872]
[1738291478464,0.8249,3253.0,3252.9,0.28677872]
[1738291481558,0.798,3253.2,3252.9,0.28677872]
[1738291481857,3.87189,3253.2,3252.9,0.28677872]
[1738291482944,0.08752727,3253.1,3252.9,0.28677872]
[1738291483870,0.08752727,3253.1,3253.0,0.28677872]
[1738291486876,3.16151727,3253.1,3253.0,0.28677872]
[1738291487060,3.89366079,3253.1,3253.0,0.28677872]
[1738291488472,0.08752727,3253.1,3253.0,0.28677872]
[1738291488682,0.2496,3253.3,3253.0,0.28677872]
[1738291488880,0.0875394,3253.1,3253.0,0.28677872]
[1738291489080,0.2496,3253.3,3253.0,0.28677872]
[1738291489232,0.08754119,3253.1,3253.0,0.28677872]
[1738291489432,0.2496,3253.3,3253.0,0.28677872]
[1738291489627,0.08754119,3253.1,3253.0,0.28677872]
[1738291489945,3.32348,3253.3,3253.0,0.28677872]
[1738291490477,0.08755924,3253.2,3253.0,0.28677872]
[1738291490797,3.07399,3253.1,3253.0,0.28677872]
[1738291490953,3.07414,3253.0,3252.4,3.62463]
[1738291491292,0.0875578,3252.9,3252.4,3.62463]
[1738291491465,0.0875578,3252.9,3252.5,3.0745]
[1738291491665,0.8051,3253.1,3252.5,3.0745]
[1738291491865,0.08755733,3252.8,3252.5,3.0745]
[1738291492062,0.8051,3253.1,3252.5,3.0745]
[1738291492269,0.08755685,3252.7,3252.6,3.07446]
[1738291492464,0.2496,3253.3,3252.7,3.0743]
[1738291492679,0.0875567,3252.7,3252.6,4.18969154]
[1738291492882,3.32342,3253.3,3252.6,4.18969154]
[1738291493085,3.32342,3253.3,3252.7,3.07434]
[1738291494186,0.2496,3253.3,3252.7,3.07434]
[1738291494352,0.2496,3253.3,3252.8,0.28753154]
[1738291494550,3.32342,3253.3,3252.8,0.28753154]
[1738291494785,0.2496,3253.3,3252.8,3.36175154]
[1738291495194,0.03842319,3253.2,3252.8,0.28753154]
[1738291495398,3.11240591,3253.2,3252.8,0.28753154]
[1738291495752,3.7559795,3253.2,3252.9,0.28753154]
[1738291496095,3.07408,3253.0,3252.9,0.28753154]
[1738291497870,3.16172036,3253.0,3252.9,0.28753154]
[1738291499759,3.20014913,3253.0,3252.9,0.28753154]
[1738291500100,7.01804913,3253.0,3252.9,0.28753154]
[1738291500304,8.36057863,3253.0,3252.9,0.28753154]
[1738291503113,0.08764036,3253.0,3252.9,0.28753154]
[1738291503465,4.0021,3253.3,3252.9,0.28753154]
[1738291503761,0.08733894,3253.0,3252.9,0.28753154]
[1738291503991,0.2496,3253.3,3252.9,0.28753154]
[1738291504316,0.2496,3253.3,3253.0,3.07407]
[1738291504608,0.2496,3253.3,3253.1,1.15956015]
[1738291504774,0.08763525,3253.2,3253.1,0.8234]
[1738291504995,0.2496,3253.3,3253.1,0.8234]
[1738291505199,0.2496,3253.3,3253.2,0.28753154]
[1738291506317,0.2496,3253.3,3253.2,3.36142154]
[1738291506491,0.2496,3253.3,3253.2,4.71392154]
[1738291506998,0.2496,3253.3,3253.2,7.71392154]
[1738291507930,0.2496,3253.3,3253.2,4.71392154]
[1738291508132,0.2496,3253.3,3253.2,0.28753154]
[1738291512134,0.2496,3253.3,3253.2,3.36142154]
[1738291512431,0.2496,3253.3,3253.2,3.92642154]
[1738291512639,0.2496,3253.3,3253.2,4.71422154]
[1738291522051,0.2496,3253.3,3253.2,3.92642154]
[1738291522246,0.2496,3253.3,3253.2,0.28753154]
[1738291522604,0.33772719,3253.3,3253.2,0.28753154]
[1738291526137,0.33772719,3253.3,3253.0,3.07405]
[1738291527146,0.33772719,3253.3,3253.1,3.07396]
[1738291527350,0.33772719,3253.3,3252.9,3.63166]
[1738291528153,0.33772719,3253.3,3253.0,3.07404]
[1738291529352,0.33772719,3253.3,3253.1,0.28710868]
[1738291530355,0.33772719,3253.3,3253.2,0.28710868]
[1738291530356,0.37614919,3253.3,3253.2,0.28710868]
[1738291530557,1.15072719,3253.3,3253.2,0.28710868]
[1738291530912,0.33772719,3253.3,3253.2,3.36099868]
[1738291531296,0.33772719,3253.3,3253.2,38.91849868]
[1738291531552,0.2496,3253.3,3253.2,38.91849868]
[1738291531854,0.2496,3253.3,3253.2,3.91849868]
[1738291532053,0.3321743,3253.3,3253.2,3.91849868]
[1738291532358,0.37626406,3253.3,3253.2,3.91849868]
[1738291532743,0.2496,3253.3,3253.2,3.91849868]
[1738291533459,0.2496,3253.3,3253.2,3.92599868]
[1738291533617,0.2496,3253.3,3253.2,4.68609868]
[1738291533829,0.2496,3253.3,3253.2,39.68609868]
[1738291536732,0.2496,3253.3,3253.2,7.68609868]
[1738291537364,0.7943,3254.7,3253.4,0.7783]
[1738291537534,0.7943,3254.7,3254.3,3.0728]
[1738291538283,0.7943,3254.7,3254.4,3.07266]
[1738291538434,0.12709284,3254.6,3254.4,3.07266]
[1738291538636,0.7943,3254.7,3254.4,3.07266]
[1738291538869,0.12709284,3254.5,3254.4,3.07266]
[1738291539062,0.7943,3254.7,3254.3,3.0728]
[1738291539313,0.814,3255.0,3254.5,3.0726]
[1738291539463,0.814,3255.0,3254.5,3.35970868]
[1738291539663,3.0,3255.2,3254.6,3.07249]
[1738291539980,7.057004,3255.2,3254.5,3.35970868]
[1738291540483,3.84974,3255.3,3254.7,3.07247]
[1738291541468,3.84974,3255.3,3254.8,0.28710868]
[1738291541868,0.7778,3255.3,3254.9,3.62978]
[1738291542516,0.7778,3255.3,3255.0,0.28710868]
[1738291542745,4.234674,3255.3,3255.0,0.28710868]
[1738291542946,0.1278094,3255.2,3255.0,0.28710868]
[1738291543241,4.234674,3255.3,3255.0,0.28710868]
[1738291543445,0.812,3255.7,3255.2,3.07193]
[1738291544022,3.07166,3255.6,3255.1,0.28710868]
[1738291545801,0.812,3255.7,3255.1,0.28710868]
[1738291546002,3.07169,3255.6,3255.1,0.28710868]
[1738291546202,3.767206,3255.6,3255.1,0.28710868]
[1738291547645,3.767206,3255.6,3255.0,0.28710868]
[1738291548029,3.07181,3255.5,3255.0,0.28710868]
[1738291548437,0.695516,3255.6,3255.0,3.35921868]
[1738291548761,1.229117,3257.2,3256.1,0.8081]
[1738291548901,1.229117,3257.2,3257.0,3.63527]
[1738291548902,0.61679882,3257.1,3257.0,3.63527]
[1738291549098,0.61679882,3257.1,3257.0,0.565]
[1738291549419,0.61679882,3257.1,3256.8,0.55]
[1738291549633,0.61679882,3257.1,3256.6,0.8081]
[1738291549835,0.61679882,3257.1,3256.6,3.0706]
[1738291550169,0.11024791,3257.0,3256.6,3.07064]
[1738291550512,0.817,3257.2,3256.5,0.0075]
[1738291550913,0.11024791,3257.1,3256.6,3.07066]
[1738291551555,0.11024791,3257.1,3256.1,2.4405]
[1738291551556,0.03837953,3257.0,3256.1,5.50412]
[1738291551709,3.07051,3256.8,3256.1,2.433]
[1738291551914,0.03838696,3256.7,3256.1,2.433]
[1738291552252,0.14877169,3256.7,3256.1,2.433]
[1738291553123,0.03838696,3256.7,3256.0,3.07123]
[1738291553329,3.10899696,3256.7,3256.0,3.07123]
[1738291553649,0.11040577,3256.6,3256.0,3.07123]
[1738291553905,0.03838777,3256.5,3255.7,3.07152]
[1738291554064,3.88788,3256.4,3255.7,3.07152]
[1738291554224,3.88788,3256.4,3255.5,0.204]
[1738291554225,0.0383919,3256.3,3255.5,0.204]
[1738291554430,3.1093819,3256.3,3255.6,3.07161]
[1738291554653,0.11020584,3256.2,3255.6,3.07161]
[1738291554858,3.18130584,3256.2,3255.5,0.28487143]
[1738291555014,0.03839367,3256.1,3255.5,3.35658143]
[1738291555228,0.11014969,3256.0,3255.7,3.07152]
[1738291555574,0.817,3256.4,3255.8,3.07142]
[1738291555728,0.11014969,3255.9,3255.8,3.07142]
[1738291555927,0.8102,3256.8,3256.4,3.07083]
[1738291556667,0.8102,3256.8,3256.7,3.07059]
[1738291557028,3.06994,3257.4,3256.7,3.07059]
[1738291557029,0.7908,3257.3,3256.7,3.07059]
[1738291557259,4.246894,3257.3,3256.7,3.07059]
[1738291557442,4.246894,3257.3,3256.6,3.07066]
[1738291557845,0.10659515,3257.2,3256.6,3.07066]
[1738291558044,0.10659515,3257.2,3257.1,3.07771]
[1738291558258,0.10659515,3257.2,3257.1,3.07021]
[1738291558570,3.86484,3257.8,3257.1,3.07021]
[1738291558775,3.06974,3257.6,3256.9,3.07032]
[1738291559128,3.06974,3257.6,3257.0,3.0703]
[1738291559129,0.10316352,3257.5,3257.0,3.0703]
[1738291559676,0.0927214,3257.5,3257.4,7.42593]
[1738291559831,0.8326,3259.1,3257.5,3.565]
[1738291560033,0.771,3258.4,3257.6,3.27574]
[1738291560233,3.06954,3257.9,3257.1,3.07012]
[1738291560475,0.7912,3257.7,3257.1,3.07012]
[1738291560879,0.08128954,3257.6,3257.1,3.07012]
[1738291561438,0.08128954,3257.6,3256.9,3.0704]
[1738291561590,0.08128954,3257.6,3257.0,3.0703]
[1738291561786,0.08128954,3257.6,3257.1,3.07017]
[1738291562164,0.08128954,3257.6,3257.1,0.5575]
[1738291562373,0.08128954,3257.6,3257.3,3.06994]
[1738291562747,0.08128954,3257.6,3257.5,3.06983]
[1738291562946,0.7785,3258.1,3257.5,3.06983]
[1738291563149,3.06918,3258.2,3257.5,3.06982]
[1738291563656,0.03837081,3258.1,3257.5,3.06982]
[1738291564683,3.06918,3258.2,3257.5,3.06982]
[1738291564852,3.10755082,3258.2,3257.5,3.06982]
[1738291565463,3.06938,3258.0,3257.3,3.07002]
[1738291565678,0.7943,3257.9,3257.1,3.07019]
[1738291566002,0.03837216,3257.8,3257.1,3.27819]
[1738291566204,0.03837216,3257.8,3257.1,3.07019]
[1738291566907,3.86381,3257.9,3257.1,3.07019]
[1738291567079,0.08168924,3257.7,3257.1,3.07019]
[1738291567277,0.12000809,3257.8,3257.1,3.07019]
[1738291567483,3.10794496,3257.8,3257.1,3.07019]
[1738291567705,0.08163313,3257.7,3257.1,3.07019]
[1738291568410,3.15129313,3257.7,3257.1,3.07019]
[1738291568720,3.61829209,3257.7,3257.1,3.07019]
[1738291568972,3.0698,3257.6,3256.9,3.07038]
[1738291569221,0.08163313,3257.7,3257.1,3.07017]
[1738291569427,3.10799465,3257.8,3257.1,3.07017]
[1738291569595,0.08163313,3257.6,3257.1,3.07017]
[1738291569796,0.03837521,3257.7,3257.1,3.07017]
[1738291569982,0.08163313,3257.5,3257.1,3.07017]
[1738291570185,0.03837521,3257.7,3257.1,3.07017]
[1738291570388,0.08163313,3257.4,3257.1,3.07017]
[1738291570588,0.03837521,3257.7,3257.1,3.07017]
[1738291570589,3.1079951,3257.8,3257.1,3.07017]
[1738291570815,0.08163313,3257.3,3257.1,3.07017]
[1738291571017,3.06966,3257.7,3257.1,3.07017]
[1738291571331,3.1079351,3257.8,3257.1,3.07017]
[1738291571502,0.08163313,3257.6,3257.1,3.07017]
[1738291571703,3.06984,3257.5,3256.9,3.0704]
[1738291571916,0.08160159,3257.5,3256.9,3.2784]
[1738291572115,3.0697,3257.7,3256.9,3.2784]
[1738291572303,3.0697,3257.7,3257.0,3.07029]
[1738291572304,0.08160159,3257.4,3257.0,3.07029]
[1738291572504,3.763056,3257.7,3257.0,3.07029]
[1738291572831,0.08160159,3257.3,3257.0,3.07029]
[1738291573131,0.08159809,3257.2,3257.0,3.07029]
[1738291573338,3.763056,3257.7,3257.0,3.07029]
[1738291573631,0.08159809,3257.1,3257.0,3.07029]
[1738291573793,3.763056,3257.7,3257.0,3.07029]
[1738291573993,0.08159809,3257.1,3257.0,3.07029]
[1738291574193,3.0697,3257.7,3257.0,3.07029]
[1738291574489,0.03837641,3257.6,3256.8,3.07047]
[1738291574689,3.07012,3257.2,3256.6,3.07067]
[1738291574936,3.10839057,3257.4,3256.6,3.07067]
[1738291575122,0.08144382,3257.1,3256.6,3.07067]
[1738291575433,3.10839057,3257.4,3256.6,3.07067]
[1738291575618,0.08144382,3257.0,3256.6,3.07067]
[1738291575791,3.50024963,3257.4,3256.6,3.07067]
[1738291575989,0.08144382,3256.9,3256.6,3.07067]
[1738291576220,0.8102,3257.5,3257.0,3.07029]
[1738291577732,0.84857784,3257.5,3256.9,3.07039]
[1738291577893,0.8102,3257.5,3256.9,3.07039]
[1738291578231,0.84857784,3257.5,3256.9,3.07039]
[1738291578631,0.84857784,3257.5,3256.5,3.07076]
[1738291578632,3.07004,3257.3,3256.5,3.07076]
[1738291578794,0.03838051,3257.2,3256.5,3.07071]